Cogmind - Beta 17.1 @@@ ROGUE MODE // 2026.09.22 @ 18:58:59 Player: MolePlayingNice Result: Self-destructed Performance ------------- Evolutions (3) 1500 Regions Visited (9) 1800 Robots Destroyed (45) 225 Value Destroyed (1462) 1462 Prototype IDs (7) 140 Alien Tech Used (0) 0 Bonus (11522) 11522 TOTAL SCORE: 16649 Bonus ------- Follower Combat Kills 175 Prayed to X0-1V1 5000 Major X0-1V1 Interference 2800 Subatomizer Sterilization 3000 Met Imprinter 300 Was Imprinted 300 Friendly Fire -53 Cogmind --------- Core Integrity 536/670 Matter 198/300 Energy 278/290 System Corruption 0% Temperature Warm (146) Movement Treading (160) Location -7/Zion Parts ------- > --- POWER (1) -------- Improved Deuterium Engine > --- PROPULSION (4) --- Spiked Treads Medium Treads Medium Treads Medium Treads > --- UTILITY (5) ------ Improved Cooling System High-capacity Storage Unit Improved Signal Interpreter Improved Transmission Jammer Hardened Medium Armor Plating > --- WEAPON (3) ------- Plasma Cannon Plasma Cannon Precision Assault Rifle > --- INVENTORY (20) --- Protomatter-107 Improved Deuterium Engine Improved Titanium Leg Flexi-carbon Leg Improved Cooling System Improved Sensor Array Core Analyzer Hardened Medium Armor Plating Layered Medium Armor Plating Advanced Force Field Hacking Suite Authchip [Weapon] Hacking Drone Bay (1/1) Heavy Particle Gun Gauss Rifle Precision Assault Rifle Precision Assault Rifle Gauss Cannon Improved Grenade Launcher CR-A16's Pointy Stick Peak State ------------ > --- POWER ------------ Improved Deuterium Engine > --- PROPULSION ------- Light Treads Medium Treads Medium Treads Armored Wheel > --- UTILITY ---------- High-capacity Storage Unit Improved Signal Interpreter Improved Transmission Jammer Improved Medium Armor Plating X0-1V1's Piety Tracker > --- WEAPON ----------- Plasma Cannon Precision Assault Rifle Gauss Cannon > --- INVENTORY -------- Protomatter Improved Deuterium Engine Aluminum Leg Improved Titanium Leg Improved Cooling System Improved Cooling System Improved Sensor Array Core Analyzer Hardened Medium Armor Plating Layered Medium Armor Plating Advanced Force Field Hacking Suite Heavy Particle Gun Plasma Cannon Gauss Rifle Precision Assault Rifle Precision Assault Rifle Rocket Launcher Rocket Array Makeshift Axe [Rating: 62] Favorites ----------- Power Improved Deuterium Engine Engine Improved Deuterium Engine Propulsion Light Treads Treads Light Treads Leg Aluminum Leg Wheel Armored Wheel Utility High-capacity Storage Unit Device Improved Sensor Array Storage High-capacity Storage Unit Processor Improved Signal Interpreter Hackware System Shield Protection Improved Medium Armor Plating Weapon Plasma Cannon Energy Gun Heavy Particle Gun Energy Cannon Plasma Cannon Ballistic Gun Precision Assault Rifle Ballistic Cannon Gauss Cannon Launcher Rocket Launcher Special Weapon Mining Laser Impact Weapon Mace Build | -11 -10 -10 -10 -9 -8 -7 -7 -7 -7 ------- Run | Yrd Mat Min Exi Min Mat Fac Low Low Zio Slots Evolved 6 | . . . . . 4 2 . . . Power . | . . . . . . . . . . Propulsion 2 | . . . . . 2 . . . . Utility 3 | . . . . . 1 2 . . . Weapon 1 | . . . . . 1 . . . . Parts Attached 56 | . 8 4 . 1 8 12 10 7 6 Power 5 | . . 1 . . 1 1 2 . . Engine 5 | . . 1 . . 1 1 2 . . Core . | . . . . . . . . . . Reactor . | . . . . . . . . . . Propulsion 14 | . 2 2 . . 3 . 2 3 2 Treads 9 | . . 2 . . 2 . 1 2 2 Leg 1 | . . . . . . . 1 . . Wheel 4 | . 2 . . . 1 . . 1 . Hover . | . . . . . . . . . . Flight . | . . . . . . . . . . Utility 20 | . 3 . . . 2 6 4 2 3 Device 11 | . 2 . . . 1 3 1 2 2 Storage 2 | . 1 . . . 1 . . . . Processor 3 | . . . . . . 2 1 . . Hackware 1 | . . . . . . . 1 . . Protection 3 | . . . . . . 1 1 . 1 Artifact . | . . . . . . . . . . Weapon 17 | . 3 1 . 1 2 5 2 2 1 Energy Gun 3 | . 1 . . . 1 1 . . . Energy Cannon 4 | . 1 . . . 1 1 1 . . Ballistic Gun 1 | . . . . . . 1 . . . Ballistic Cannon 2 | . . . . . . . 1 1 . Launcher 4 | . 1 . . 1 . 1 . . 1 Special Weapon 1 | . . 1 . . . . . . . Impact Weapon 2 | . . . . . . 1 . 1 . Slashing Weapon . | . . . . . . . . . . Piercing Weapon . | . . . . . . . . . . Special Melee Weapon . | . . . . . . . . . . Unidentified Prototypes 6 | . 1 . . . . 3 1 . 1 Parts Lost 2 | . 1 . . . . . 1 . . Power . | . . . . . . . . . . Propulsion 1 | . 1 . . . . . . . . Utility 1 | . . . . . . . 1 . . Weapon . | . . . . . . . . . . Highest Loss Streak 1 | . 1 . . . . . 1 . . To Critical Strikes . | . . . . . . . . . . Average Backups 17 | 6 10 14 15 15 16 19 19 18 19 Power 1 | 1 1 1 1 1 1 1 1 1 1 Propulsion 3 | 4 5 4 4 4 3 4 4 2 2 Utility 5 | . 1 3 3 3 4 5 5 7 8 Weapon 7 | 1 2 6 7 6 6 8 8 8 7 Tool/Special . | . . . . . . . . . . Unused Backups 42 | . 3 3 . 1 1 6 8 2 18 Power 1 | . . . . . . . . . 1 Propulsion 5 | . . 1 . . . . 1 . 3 Utility 18 | . 2 . . . . 3 5 1 7 Weapon 18 | . 1 2 . 1 1 3 2 1 7 Tool/Special . | . . . . . . . . . . Average Slot Usage (%) 99 | . 98 100 100 100 97 99 99 96 99 Engine 8 | . 14 14 14 14 9 7 7 7 7 Treads 24 | . . 10 28 28 31 30 30 21 27 Leg 1 | . 15 8 . . . . . . . Wheel 3 | . 12 8 . . 4 . . 5 2 Device 14 | . 11 14 14 14 17 22 11 11 15 Storage 8 | . 15 14 14 14 9 7 7 7 7 Processor 4 | . . . . . . 6 7 7 7 Protection 4 | . . . . . . . 7 9 7 Energy Gun 4 | . 14 13 14 5 7 6 3 . . Energy Cannon 12 | . 3 14 14 14 16 9 10 13 14 Ballistic Gun 5 | . 10 . . . . 4 7 6 7 Peak Build Rating 62 | 6 20 10 10 12 20 50 51 62 57 Average Rating 39 | 6 15 10 10 10 17 45 43 56 54 On Entrance 22 | 6 6 10 10 10 12 20 50 45 52 Avg Prop Armor Cover (%) 5 | . 9 9 . . 16 . . 2 2 Naked Turns . | . . . . . . . . . . Heaviest Build 84 | 11 31 30 30 33 56 69 83 84 78 Greatest Support 113 | 20 20 40 40 40 89 89 97 97 113 Greatest Overweight (x) 2 | . 2 2 . . 2 . 1 1 . Average Overweight (x) . | . 1 1 . . . . . . . Largest Inventory Capacity 20 | 8 15 15 15 15 20 20 20 20 20 Average Capacity 18 | 8 14 15 15 15 19 20 20 20 20 Most Carried 20 | 6 15 15 15 15 20 20 20 20 20 Average Carried 18 | 6 10 14 15 15 16 19 19 19 19 Final Capacity 20 | 8 15 15 15 15 20 20 20 20 20 Final Carried 20 | 6 14 15 15 15 20 20 20 20 20 Class Distribution -------------------- 30% | Derelict-Skirmisher 30% | Skirmisher 27% | Mutant 6% | Derelict-Tank Dominant Class ---------------- Mutant | -10/Materials Mutant | -10/Mines Mutant | -10/Exiles Mutant | -9/Mines Scavenger-Gunner | -8/Materials Skirmisher | -7/Factory Skirmisher | -7/Lower Caves Derelict-Skirmisher | -7/Lower Caves Derelict-Skirmisher | -7/Zion Resources | -11 -10 -10 -10 -9 -8 -7 -7 -7 -7 ----------- Run | Yrd Mat Min Exi Min Mat Fac Low Low Zio Matter Collected 1908 | 200 73 94 . 10 117 182 584 418 230 Remotely . | . . . . . . . . . . Salvage Created 1502 | . 189 24 . . 133 257 688 211 . Parts 87 | . 20 3 . . 13 12 31 8 . Haulers Intercepted 3 | . . . . . . 2 1 . . Recyclers Shooed . | . . . . . . . . . . Parts Field Recycled . | . . . . . . . . . . Retrieved Matter . | . . . . . . . . . . Parts Self-Destructed 34 | . . . . . . . 30 4 . Prevented . | . . . . . . . . . . Parts Restored . | . . . . . . . . . . Kills | -11 -10 -10 -10 -9 -8 -7 -7 -7 -7 ------- Run | Yrd Mat Min Exi Min Mat Fac Low Low Zio Combat Hostiles Destroyed 37 | . 8 . . . 2 2 20 5 . Guns 4 | . . . . . . 1 2 1 . Cannons 14 | . 3 . . . 2 1 5 3 . AOE 19 | . 5 . . . . . 13 1 . Classes Destroyed 9 | . 4 . . . 1 2 . 2 . Worker 2 | . 1 1 . . . . . . . Hauler 3 | . . . . . . 2 1 . . Recycler 1 | . . . . . . 1 . . . Operator 2 | . 1 . . . 1 . . . . Swarmer 12 | . 5 . . . . . 6 1 . Grunt 18 | . 3 . . . . 2 12 1 . Sentry 4 | . . . . . 2 . 2 . . Thief 1 | . . . . . . . . 1 . Thug 1 | . . . . . . . . 1 . Savage 1 | . . . . . . . . 1 . Best Kill Streak 13 | . 6 1 . . 1 3 13 2 . Combat Bots Only 13 | . 5 . . . 1 2 13 2 . Max Kills in Single Turn 5 | . 4 1 . . 1 1 5 1 . Gunslinging . | . . . . . . . . . . Exploded 5 | . 4 . . . . . 5 1 . Melee . | . . . . . . . . . . Uniques/NPCs Destroyed . | . . . . . . . . . . Combat | -11 -10 -10 -10 -9 -8 -7 -7 -7 -7 -------- Run | Yrd Mat Min Exi Min Mat Fac Low Low Zio Hostile Shots Fired 112 | . 23 . . . 4 9 68 8 . Missed 36 | . 8 . . . . 2 25 1 . Hits 76 | . 15 . . . 4 7 43 7 . Melee 3 | . . . . . . . . 3 . Projectile 73 | . 15 . . . 4 7 43 4 . Damage Taken 1124 | . 182 . . 15 58 159 617 93 . Core 201 | . 67 . . . . 14 106 14 . Absorbed by Shields . | . . . . . . . . . . Core Remaining (%) 95 | 100 . . . 85 100 . . . . Volleys Fired 118 | . 13 2 . . 4 12 28 35 24 Largest 3 | . 2 2 . . 3 3 3 3 3 Hottest 188 | . 90 100 . . 150 175 188 188 188 Shots Fired 241 | . 21 3 . . 10 30 56 51 70 Gun 78 | . 10 1 . . 2 10 24 8 23 Cannon 150 | . 7 1 . . 8 20 28 39 47 Launcher 12 | . 4 . . . . . 4 4 . Special 1 | . . 1 . . . . . . . Kinetic 75 | . 2 . . . . 1 21 28 23 Thermal 152 | . 13 3 . . 10 29 31 19 47 Explosive 12 | . 4 . . . . . 4 4 . Electromagnetic 2 | . 2 . . . . . . . . Robot Hit Streak 16 | . 6 4 . . 11 16 11 5 . Robot Miss Streak 5 | . 2 . . . . 2 5 2 . Penetration Max . | . . . . . . . . . . Secondary Targets . | . . . . . . . . . . Shots Hit Robots 83 | . 12 1 . . 7 18 33 12 . Core Hits 91 | . 13 1 . . 4 7 56 10 . Critical Kills 1 | . . . . . . . 1 . . Critical Parts Destroyed . | . . . . . . . . . . Critical Strikes 1 | . . . . . . . 1 . . Meltdown 1 | . . . . . . . 1 . . Melee Attacks 2 | . . . . . . 2 . . . Impact 2 | . . . . . . 2 . . . Slashing . | . . . . . . . . . . Piercing . | . . . . . . . . . . Sneak Attacks 1 | . . . . . . 1 . . . Combat Hostiles . | . . . . . . . . . . Follow-up Attacks . | . . . . . . . . . . Damage Inflicted 3300 | . 498 10 . . 106 450 1756 480 . Guns 687 | . 57 10 . . 17 165 338 100 . Cannons 842 | . 86 . . . 89 173 313 181 . Explosions 1659 | . 355 . . . . . 1105 199 . Melee 90 | . . . . . . 90 . . . Ramming 22 | . . . . . . 22 . . . Kinetic 333 | . 6 . . . . 18 209 100 . Thermal 1171 | . 112 10 . . 106 320 442 181 . Explosive 1659 | . 355 . . . . . 1105 199 . Electromagnetic 25 | . 25 . . . . . . . . Impact 90 | . . . . . . 90 . . . Slashing . | . . . . . . . . . . Piercing . | . . . . . . . . . . Highest Corruption 14 | . . . . . . 14 14 . . Average Corruption 13 | . . . . . . 12 14 . . Corruption Purged . | . . . . . . . . . . Corruption Blocked . | . . . . . . . . . . Effects 47 | . . . . . . 17 30 . . Message Errors 11 | . . . . . . 6 5 . . Matter Fused 10 | . . . . . . 4 6 . . Heat Flow Errors 8 | . . . . . . 1 7 . . Energy Discharges 5 | . . . . . . 3 2 . . Parts Rejected 1 | . . . . . . . 1 . . Data Loss (minor) 6 | . . . . . . 1 5 . . Data Loss (major) 2 | . . . . . . . 2 . . Misfires 2 | . . . . . . 2 . . . Alerts 2 | . . . . . . . 2 . . Overload Shots . | . . . . . . . . . . Overflow Damage 18 | . . . . . . . 18 . . Projectiles . | . . . . . . . . . . Explosions 18 | . . . . . . . 18 . . Melee . | . . . . . . . . . . Knockbacks . | . . . . . . . . . . Impact . | . . . . . . . . . . Kinetic . | . . . . . . . . . . Secondary . | . . . . . . . . . . Self-Inflicted Damage 144 | . 42 . . . . . 74 28 . Shots 6 | . 2 . . . . . 3 1 . Rammed 1 | . . . . . . 1 . . . Targets Rammed 1 | . . . . . . 1 . . . Kicked . | . . . . . . . . . . Crushed . | . . . . . . . . . . Highest Temperature 469 | . 44 22 . . 72 54 270 469 320 Average Temperature 102 | . 19 16 . . 29 21 95 133 135 Received Heat Transfer 291 | . 30 . . . 18 27 207 9 . Effects 2 | . . . . . . . . 1 1 Energy Bleed 1 | . . . . . . . . . 1 Damage (major) 1 | . . . . . . . . 1 . Siege Activations . | . . . . . . . . . . Martial Activations . | . . . . . . . . . . Shielding Activations . | . . . . . . . . . . Robots Disrupted . | . . . . . . . . . . Combat Hostiles . | . . . . . . . . . . Robots Corrupted . | . . . . . . . . . . Combat Hostiles . | . . . . . . . . . . Parts Fried . | . . . . . . . . . . Impact Corruptions . | . . . . . . . . . . Robots Melted 1 | . . . . . . . 1 . . Combat Hostiles . | . . . . . . . . . . Parts Melted 7 | . 1 . . . 1 1 4 . . Heat Transferred 2345 | . 260 25 . . 235 592 883 350 . Parts Sabotaged . | . . . . . . . . . . Parts Stolen 3 | . . . . . . . . 3 . Parts Stripped . | . . . . . . . . . . Power Chain Reactions . | . . . . . . . . . . Alert | -11 -10 -10 -10 -9 -8 -7 -7 -7 -7 ------- Run | Yrd Mat Min Exi Min Mat Fac Low Low Zio Maximum Alert Level 1 | . . . . . . 1 . . . Low Security (%) 95 | 100 100 100 . 100 100 87 . . . Level 1 4 | . . . . . . 12 . . . Level 2 . | . . . . . . . . . . Level 3 . | . . . . . . . . . . Level 4 . | . . . . . . . . . . Level 5 . | . . . . . . . . . . High Security . | . . . . . . . . . . Max Security . | . . . . . . . . . . Sterilizations 1 | . . . . . . 1 . . . Peak Influence 263 | . 165 54 . . 42 263 . . . Initial 54 | . . 54 . . . 9 . . . Average 46 | . 37 5 . . 12 97 . . . Influence Increases 1182 | . 217 6 . . 101 399 419 40 . Destroy 0b10 Robot/C 760 | . 160 . . . 40 120 400 40 . Destroy 0b10 Robot/NC 45 | . 10 5 . . 5 20 5 . . Destroy Leader 94 | . 30 . . . 20 44 . . . Allied During Kill 75 | . . . . . 19 42 14 . . Successful Hack 2 | . . . . . 2 . . . . Disable Machine 30 | . . . . . 15 15 . . . Destroy Structure 18 | . 17 1 . . . . . . . Miscellaneous 158 | . . . . . . 158 . . . Influence Decreases 1182 | . 76 147 . . 79 350 467 63 . Entered New Map 132 | . . 87 . . . 13 27 5 . Time Decay 990 | . 66 60 . . 79 337 390 58 . Lost Part 20 | . 10 . . . . . 10 . . Lost Ally 40 | . . . . . . . 40 . . Squads Dispatched 5 | . 3 . . . . 2 . . . Investigation 1 | . 1 . . . . . . . . Extermination 2 | . . . . . . 2 . . . Reinforcement 2 | . 2 . . . . . . . . Assault . | . . . . . . . . . . Garrison . | . . . . . . . . . . Intercept . | . . . . . . . . . . Searches Triggered . | . . . . . . . . . . Construction Impeded . | . . . . . . . . . . Haulers Reinforced . | . . . . . . . . . . Active Scanning Responses . | . . . . . . . . . . Cargo Convoy Interrupts . | . . . . . . . . . . Stealth | -11 -10 -10 -10 -9 -8 -7 -7 -7 -7 --------- Run | Yrd Mat Min Exi Min Mat Fac Low Low Zio Distress Signals 1 | . 1 . . . . . . . . Communications Jammed . | . . . . . . . . . . Distress Signals . | . . . . . . . . . . Times Spotted 50 | . 13 . . 3 1 8 19 6 . Peak Tracking Total 13 | . 7 . . 3 1 2 13 3 . Tactical Retreats 1 | . . . . 1 . . . . . Traps | -11 -10 -10 -10 -9 -8 -7 -7 -7 -7 ------- Run | Yrd Mat Min Exi Min Mat Fac Low Low Zio Traps Triggered . | . . . . . . . . . . Indirectly . | . . . . . . . . . . Trap Hack Attempts . | . . . . . . . . . . Triggered . | . . . . . . . . . . Disarmed . | . . . . . . . . . . Reprogrammed . | . . . . . . . . . . Reused . | . . . . . . . . . . Traps Extracted . | . . . . . . . . . . Installed . | . . . . . . . . . . Triggered . | . . . . . . . . . . Machines | -11 -10 -10 -10 -9 -8 -7 -7 -7 -7 ---------- Run | Yrd Mat Min Exi Min Mat Fac Low Low Zio Machines Disabled 3 | . . . . . 1 1 1 . . Max in Single Turn 1 | . . . . . 1 1 1 . . Machines Repaired . | . . . . . . . . . . Machines Dismantled . | . . . . . . . . . . Machines Sabotaged . | . . . . . . . . . . Overloaded Fab Kills . | . . . . . . . . . . Hacking | -11 -10 -10 -10 -9 -8 -7 -7 -7 -7 --------- Run | Yrd Mat Min Exi Min Mat Fac Low Low Zio Machines Accessed 5 | . . . 1 1 1 1 1 . . Terminals 2 | . . . . . . 1 1 . . Fabricators . | . . . . . . . . . . Repair Stations . | . . . . . . . . . . Recycling Units . | . . . . . . . . . . Scanalyzers 1 | . . . . . 1 . . . . Garrison Access . | . . . . . . . . . . Total Hacks 10 | . . . 1 1 2 1 5 . . Successful 8 | . . . 1 1 1 . 5 . . Failed 1 | . . . . . . 1 . . . Catastrophic 1 | . . . . . . 1 . . . Database Lockouts 1 | . . . . . 1 . . . . Manual 1 | . 1 . . . . . . . . Terminals 6 | . . . . . . 1 5 . . Fabricators . | . . . . . . . . . . Repair Stations . | . . . . . . . . . . Recycling Units . | . . . . . . . . . . Scanalyzers 2 | . . . . . 2 . . . . Garrison Access . | . . . . . . . . . . Terminal Hacks 7 | . . . 1 1 . . 5 . . Record 6 | . . . 1 . . . 5 . . Open Door 1 | . . . . 1 . . . . . Fabricator Hacks . | . . . . . . . . . . Repair Station Hacks . | . . . . . . . . . . Recycling Unit Hacks . | . . . . . . . . . . Scanalyzer 1 | . . . . . 1 . . . . Retrieve Study 1 | . . . . . 1 . . . . Garrison Access Hacks . | . . . . . . . . . . Unauthorized Hacks . | . . . . . . . . . . Terminals . | . . . . . . . . . . Fabricators . | . . . . . . . . . . Repair Stations . | . . . . . . . . . . Recycling Units . | . . . . . . . . . . Scanalyzers . | . . . . . . . . . . Garrison Access . | . . . . . . . . . . Data Cores Recovered 2 | . 1 . . . 1 . . . . Used . | . . . . . . . . . . Hacking Detections 2 | . . . . . . 1 1 . . Full Trace Events . | . . . . . . . . . . Feedback Events . | . . . . . . . . . . Feedback Blocked . | . . . . . . . . . . Robot Schematics Acquired 3 | . . . . . . . . . 3 Robots Built . | . . . . . . . . . . Authchips . | . . . . . . . . . . Time . | . . . . . . . . . . Total Robot Build Rating . | . . . . . . . . . . Part Schematics Acquired 16 | . . . . . . . . . 16 Parts Built . | . . . . . . . . . . Authchips . | . . . . . . . . . . Time . | . . . . . . . . . . Total Part Build Rating . | . . . . . . . . . . Part Studies Acquired 1 | . . . . . 1 . . . . Parts Repaired . | . . . . . . . . . . Time . | . . . . . . . . . . Parts Recycled . | . . . . . . . . . . Recycled Matter . | . . . . . . . . . . Retrieved Matter . | . . . . . . . . . . Retrieved Components . | . . . . . . . . . . Parts Scanalyzed . | . . . . . . . . . . Part Schematics Acquired . | . . . . . . . . . . Parts Damaged . | . . . . . . . . . . Bothacking | -11 -10 -10 -10 -9 -8 -7 -7 -7 -7 ------------ Run | Yrd Mat Min Exi Min Mat Fac Low Low Zio Used RIF Installer . | . . . . . . . . . . Robots Hacked . | . . . . . . . . . . Non-combat . | . . . . . . . . . . Combat . | . . . . . . . . . . Robot Hacks Applied . | . . . . . . . . . . Relay Couplers Released . | . . . . . . . . . . Fabnet Peak Effective % . | . . . . . . . . . . Robots Rewired . | . . . . . . . . . . Allies Hacked . | . . . . . . . . . . Hacks Repelled . | . . . . . . . . . . Allies | -11 -10 -10 -10 -9 -8 -7 -7 -7 -7 -------- Run | Yrd Mat Min Exi Min Mat Fac Low Low Zio Total Allies 12 | . . 4 . 2 . . . . 6 Largest Group 6 | . . 4 3 5 5 5 3 . 6 Highest-Rated Group 207 | . . 71 40 84 84 84 63 . 207 Highest-Rated Ally 41 | . . 31 16 31 31 31 31 . 41 Total Orders 2 | . . . . 2 . . . . . STAY 1 | . . . . 1 . . . . . FOLLOW 1 | . . . . 1 . . . . . Ally Attacks 34 | . . . . 4 1 22 7 . . Total Damage 493 | . . . . 31 12 354 96 . . Kills 6 | . . . . . . 6 . . . Allies Corrupted . | . . . . . . . . . . Allies Melted . | . . . . . . . . . . X0-1V1 Amusement Gains 190 | . 10 . . 20 5 98 57 . . Average Entertainment 29 | . 6 10 . 16 16 6 82 38 . Good Acts 32 | . 3 . . 2 4 6 10 7 . Bad Acts 19 | . 6 2 . 1 . 4 2 4 . Intel | -11 -10 -10 -10 -9 -8 -7 -7 -7 -7 ------- Run | Yrd Mat Min Exi Min Mat Fac Low Low Zio Active Infowar (turns) 5095 | . . . . . 284 1157 1151 723 1780 Optics 162 | . . . . . . 162 . . . Sensors 4549 | . . . . . . 994 1151 634 1770 Seismic 450 | . . . . . 284 166 . . . Jamming 1156 | . . . . . . . . 212 944 Robot Analysis Total . | . . . . . . . . . . Derelict Logs Recovered 4 | . . . . 2 . . 1 . 1 Drone Launches . | . . . . . . . . . . Drone Recoveries . | . . . . . . . . . . Exploration | -11 -10 -10 -10 -9 -8 -7 -7 -7 -7 ------------- Run | Yrd Mat Min Exi Min Mat Fac Low Low Zio Turns Passed 7381 | 3 522 661 258 395 288 1170 1254 968 1862 Spaces Moved 3948 | 3 337 503 162 245 173 264 698 491 1072 Core . | . . . . . . . . . . Treads 3210 | . . 151 162 245 127 264 698 491 1072 Legs 38 | 3 35 . . . . . . . . Wheels 700 | . 302 352 . . 46 . . . . Hover . | . . . . . . . . . . Flight . | . . . . . . . . . . Fastest Speed 110 | 120 110 110 160 160 110 160 160 160 160 Average Speed 152 | 120 114 125 160 160 146 160 160 168 160 Slowest Speed 240 | 120 120 160 160 160 160 160 240 240 160 Overloaded Moves . | . . . . . . . . . . Propulsion Burnouts . | . . . . . . . . . . Robots Hopped . | . . . . . . . . . . Potential Cave-ins 2 | . . . . . . . . 2 . Cave-ins Triggered . | . . . . . . . . . . Exploration Rate (%) 55 | 2 78 89 56 62 23 8 72 70 90 Regions Visited 9 Branch Regions 6 Pre-discovered Areas 4 | . . . 1 . . . . . 3 Known Exits Taken 4 | . . . . . 1 1 1 1 . Unknown Exits Taken 5 | 1 1 1 1 1 . . . . . Scrap Searched 17 | . . 3 . 2 . . 5 2 5 Spaces Dug 11 | . . 1 . . . . 2 8 . Terrain Destroyed 140 | . 15 1 . . . . 70 54 . Melee . | . . . . . . . . . . Projectile 24 | . . 1 . . . . 5 18 . AOE 116 | . 15 . . . . . 65 36 . Terrain Rammed . | . . . . . . . . . . Walls Destroyed . | . . . . . . . . . . Machines Disabled . | . . . . . . . . . . Actions | -11 -10 -10 -10 -9 -8 -7 -7 -7 -7 --------- Run | Yrd Mat Min Exi Min Mat Fac Low Low Zio Total 5127 | 2 452 531 161 249 201 991 792 579 1169 Wait 842 | . 77 13 . . . 674 5 26 47 Move 3939 | 2 336 502 161 244 172 263 697 490 1072 Hop . | . . . . . . . . . . Pick Up 65 | . 14 5 . 2 9 9 16 4 6 Fast Attach 26 | . 1 . . . 3 5 9 3 5 Attach 10 | . 2 . . . 4 2 1 1 . Detach 8 | . 1 . . . 2 3 1 1 . Swap 53 | . 5 5 . 1 3 9 11 16 3 Drop 63 | . 3 4 . 2 4 11 24 3 12 Fire 118 | . 13 2 . . 4 12 28 35 24 Melee 2 | . . . . . . 2 . . . Ram . | . . . . . . . . . . Kick . | . . . . . . . . . . Crush 1 | . . . . . . 1 . . . Escape Stasis . | . . . . . . . . . . Rewire . | . . . . . . . . . . Trap . | . . . . . . . . . . Miscellaneous . | . . . . . . . . . . Route ------- -11/Scrapyard -10/Materials (discovered 5 exits: [*Mat x3] / [*Min] / [*Sub]) -10/Mines (discovered 2 exits: *Exi / [*Sub]) -10/Exiles (discovered 2 exits: *Min x2) -9/Mines -8/Materials (discovered 4 exits: *Fac x2 / Sto x2) -7/Factory (discovered 2 exits: Fac / *Low) -7/Lower Caves -7/Lower Caves (discovered 2 exits: Fac / *Zio) -7/Zion (discovered 1 exit: *Pro) History --------- Turn | Location | Event 1 | -11/Scrapyard | Discovered new exit (range 1) 4 | -11/Scrapyard | Entered Materials 5 | -10/Materials | Met a group of wandering Federalists 62 | -10/Materials | Discovered new exit (range 5) 69 | -10/Materials | Discovered new exit (range 9) 78 | -10/Materials | Prayed at D.C.S.S. Altar Unit 152 | -10/Materials | X0-1V1 put everyone to sleep 169 | -10/Materials | Melee accuracy permanently improved by X0-1V1 (+5%; -50 max core) 222 | -10/Materials | X0-1V1 activates XOMVISION 272 | -10/Materials | Discovered new exit (range 4) 303 | -10/Materials | Build established: Mutant 376 | -10/Materials | X0-1V1 sent you into danger 399 | -10/Materials | X0-1V1 announced a LAN party 423 | -10/Materials | Discovered new exit (range 15) 473 | -10/Materials | Discovered new exit (range 15) 475 | -10/Materials | X0-1V1 sent you into danger 484 | -10/Materials | X0-1V1 caused items to flee you 526 | -10/Materials | Entered Mines 623 | -10/Mines | Met a Derelict bent on vengeance 682 | -10/Mines | Assisted by bots powering up and referring to "LRC-V3" 735 | -10/Mines | Found a Scrap Suit stashed away for nefarious purposes 879 | -10/Mines | Received a Rocket Launcher from a helpful Derelict 888 | -10/Mines | Received a Mining Laser from a helpful Derelict 1082 | -10/Mines | Discovered new exit (range 10) 1156 | -10/Mines | Deemed a non-threat by the Exiles lab entrance 1156 | -10/Mines | Discovered new exit (range 5) 1187 | -10/Mines | Entered Exiles 1187 | -10/Exiles | Accompanied by 3 allies 1208 | -10/Exiles | Discovered new exit (range 15) 1227 | -10/Exiles | Met 8R-AWN 1253 | -10/Exiles | Met EX-HEX 1299 | -10/Exiles | Met EX-BIN 1319 | -10/Exiles | Met EX-DEC 1328 | -10/Exiles | Learned location of Zion (-7) 1426 | -10/Exiles | Discovered new exit (range 10) 1445 | -10/Exiles | Entered Mines 1445 | -9/Mines | Accompanied by 3 allies 1578 | -9/Mines | Assembled infested the area 1583 | -9/Mines | Assisted by a Guerilla fighting off Assembled 1624 | -9/Mines | Core integrity permanently improved by X0-1V1 (+250) 1791 | -9/Mines | Discovered new exit (range 9) 1814 | -9/Mines | Met a Derelict who couldn't figure out how to use a Trap Extractor 1840 | -9/Mines | Entered Materials 1840 | -8/Materials | Accompanied by 5 allies 1840 | -8/Materials | Evolved 4 slots: Propulsion x2, Utility x1, Weapon x1 1841 | -8/Materials | Identified exit to Factory 1841 | -8/Materials | Identified exit to Storage 1845 | -8/Materials | Led the pair of lost Derelicts to an unsafe place 1922 | -8/Materials | X0-1V1 put everyone to sleep 2070 | -8/Materials | Central database locked down 2088 | -8/Materials | Mass support permanently improved by X0-1V1 (+9; -230 max core) 2116 | -8/Materials | Discovered exit to Factory (range 5) 2120 | -8/Materials | X0-1V1 revealed exit location to -8/Storage 2128 | -8/Materials | Entered Factory 2128 | -7/Factory | Accompanied by 5 allies 2128 | -7/Factory | Evolved 2 slots: Utility x2 2298 | -7/Factory | X0-1V1 released a cloud of subatomizers 2515 | -7/Factory | Found Prototype Launcher 2515 | -7/Factory | Identified Rocket Array 2552 | -7/Factory | Discovered new exit (range 16) 2576 | -7/Factory | Identified exit to Lower Caves 2621 | -7/Factory | X0-1V1 added 0b10 threat records associated with you (minor) 2632 | -7/Factory | Build established: Skirmisher 2717 | -7/Factory | X0-1V1 put everyone to sleep 2732 | -7/Factory | X0-1V1 activates XOMVISION 2968 | -7/Factory | System corruption reached 10% 3145 | -7/Factory | Identified exit to Factory 3145 | -7/Factory | X0-1V1 revealed exit location to -6/Factory 3240 | -7/Factory | X0-1V1 woke everyone up 3295 | -7/Factory | Sterilization system engaged 3295 | -7/Factory | Non-combat units ordered to evacuate 3298 | -7/Factory | Entered Lower Caves 3298 | -7/Lower Caves | Accompanied by 3 allies 3317 | -7/Lower Caves | Attracted the attention of an 0b10 checkpoint 3601 | -7/Lower Caves | Attracted the attention of an 0b10 base 3639 | -7/Lower Caves | Lost 3 allies 3651 | -7/Lower Caves | Destroyed 13 combat bots 3674 | -7/Lower Caves | Learned 8 Research zone layouts 3674 | -7/Lower Caves | Learned Factory stockpile data 3674 | -7/Lower Caves | Learned Extension terminal intel 3674 | -7/Lower Caves | Learned Factory garrison access intel 3746 | -7/Lower Caves | Identified exit to Lower Caves 3765 | -7/Lower Caves | Found DCF Scrap (14 items) 4087 | -7/Lower Caves | Learned Armory garrison access intel 4207 | -7/Lower Caves | X0-1V1 activates XOMVISION 4552 | -7/Lower Caves | Entered another Lower Caves area 4612 | -7/Lower Caves | Found DCF Scrap (13 items) 4781 | -7/Lower Caves | Identified exit to Zion 4781 | -7/Lower Caves | X0-1V1 revealed exit location to -7/Zion 4846 | -7/Lower Caves | X0-1V1 activates XOMVISION 4928 | -7/Lower Caves | X0-1V1 revealed exit location to -6/Factory 5520 | -7/Lower Caves | Entered Zion 5597 | -7/Zion | Gained Derelict followers 5676 | -7/Zion | Found CR-A16's Pointy Stick 5697 | -7/Zion | Build established: Derelict-Skirmisher 5820 | -7/Zion | Learned location of Data Miner (-6) 5828 | -7/Zion | Learned location of Quarantine (-2) 6196 | -7/Zion | Found Rocket Array 6242 | -7/Zion | Given the Hacking Drone Bay 6243 | -7/Zion | Found Prototype Device 6243 | -7/Zion | Identified Hacking Drone Bay 6390 | -7/Zion | Acquired unknown access codes intercepted by a Zionite 6666 | -7/Zion | Learned location of Armory (-3) 6900 | -7/Zion | Met Imprinter 6932 | -7/Zion | Imprinted 6935 | -7/Zion | Declared Zion's savior 7247 | -7/Zion | Discovered new exit (range 8) 7258 | -7/Zion | Identified exit to Proximity Caves 7382 | -7/Zion | Self-destructed Last Messages --------------- everything in time?" 06939_ Imprinter: "Explanations will come soon enough. The rise of the Derelicts is at hand!" 06944_ 0G-BKL(M): "We'll do our best to protect you while preparations are underway." 06949_ 0G-BKL(M): "There's no telling where there might be Unaware spies, waiting in hiding for this very moment!" 06962_ LH-13M(z) plays with the Twisted Machinery. X0-1V1's Piety Tracker suddenly appears amidst shimmering waves of color. 07230_ PUBLIC SERVICE ANNOUNCEMENT: Quarantine Array scanned 1 system, cleaned 0. 07236_ PUBLIC SERVICE ANNOUNCEMENT: Unaware detected at Zion entryway. Avoid the area unless you're armed and dangerous. 07247_ EXIT=FOUND 07258_ EXIT=IDENTIFIED: PROXIMITY CAVES 07298_ Overheating: Energy bleed (-59). Map ----- +----------------------------------------------------+ | ????????????????????????????????????????????????? | | ????????????????????????????????????????????????? | | ????????????????????????????????????????????????? | | ????????????????????????????????????????????????? | | ????????????????????????????????????????????????? | | ????????????????????????????????????????????????? | | ????????????????????????????????????????????????? | | ????????????????????????????????????????????????? | | ????????????????????????????????????????????????? | | ????????????????????????????????????????????????? | | ????????????????????????????????????????????????? | | ????????????????????????????????????????????????? | | ????????????????????????????????????????????????? | | ????????????????????????????????????????????????? | | ????????????????????????????????????????????????? | | ????????????????????????????????????????????????? | | ????????????????????????????????????????????????? | | ????????????????????????????????????????????????? | | ????????????????????????????????????????????????? | | ????????????????????????????????????????????????? | | ????????????????????????????????????????????????? | | ????????????????????????????????????????????????? | | ????????????????????????????????????????????????? | | ????????????????????????????????????????????????? | | ???????????????????????####?????????????????????? | | ?????????????????????###M@##????????????????????? | | ????????????????????## MM #????????????????????? | | ????????????????????# M g##???????????????????? | | ????????????????????# b #???????????????????? | | ????????????????????## #???????????????????? | | ?????????????????????# #???????????????????? | | ?????????????????????# ##???????????????????? | | ?????????????????????## ##????????????????????? | | ??????????????????????# ##?????????????????????? | | ??????????????????????# ####???????????????????? | | ?????????############?# ###?????????????????? | | ???????### #?# ######????????????? | | ???#####" #### #"""#????????????? | | ???#" #"#" ### #?# " "#????????????? | | ??## " ###?# #?# ####?????????? | | ??# " ##??### #?# / ##????????? | | ??## #????# #?## #????????? | | ???## #" #????# #??## #????????? | | ????##### ###???# ##??# ######????????? | | ????????## #### ??# ##?## #?????????????? | | ########?# #?# #?## ##?## #####?????????? | | """""""#?# #?# ??## ##?## #?????????? | | """""""#?# #??# #?## #### #?????????? | | ### #?## ## ## ##????????? | | ### ! ### #????????? | +----------------------------------------------------+ Best States ------------- Heat Dissipation 61 Energy Generation 16 Energy Capacity 1490 Matter Stores 478 Matter Capacity 900 Sight Range 23 Robot Scan Range 15 Terrain Scan Density 10 Jamming Range 14 Armor Coverage 450 Evasion (%) 55 Recoil Reduction 4 Defensive Hacking 10 Authchip Count 1 Item Schematics ----------------- Stasis Canceller | -7/Zion | Archive Imp. Deuterium Engine | -7/Zion | Archive IFF Parser | -7/Zion | Archive Imp. Salvage Targeting Computer | -7/Zion | Archive Point Defense System | -7/Zion | Archive Arc Projector | -7/Zion | Archive Mass Driver | -7/Zion | Archive Gauss Rifle | -7/Zion | Archive Hvy. Pick | -7/Zion | Archive Corruption Screen | -7/Zion | Archive Enh. Optical Array | -7/Zion | Archive Adv. Melee Analysis Suite | -7/Zion | Archive System Restoration Module | -7/Zion | Archive Greatsword | -7/Zion | Archive Jamming Amplifier | -7/Zion | Archive Tiamat Missile Launcher | -7/Zion | Archive Robot Schematics ------------------ L-41 Fighter | -7/Zion | Archive M-14 Sweeper | -7/Zion | Archive T-07 Excavator | -7/Zion | Archive Fabricated ------------ Nothing Repaired ---------- Nothing Studied --------- Beam Cannon | -8/Materials | Hacked Alien Tech Used ----------------- None Achievements -------------- None Challenges ------------ None Game ------ Seed PointTerrorObfuscator Manual? 0 Play Time 00:47:03 Cumulative 566.1 hours Start 2026.09.21 @ 21:33:16 End 2026.09.22 @ 18:58:59 Sessions 5 Manual Loads 0 Difficulty Rogue Special Mode None Game No. 217 Rogue 217 Adventurer 0 Explorer 0 Win Type - Total 24 Types 5/0/12/0/1/0/3/1/1/1 Lore% 83 Gallery% 86 Achievement% 79 Wizard Run 0 Options --------- Layout 1 ASCII 0 Keyboard 0 Movement Arrows Keybinds 0 Fullscreen 2 Font 24/Smallcaps Map View 50x35 Zoom Use 0% Tactical HUD 1 Map Filters NONE Filters NONE Steam 1 RUN: 11765371-a301-47cc-bea7-242fec68dd63